bitfinex/quotes_BTCUSD_20250316
["timestamp","ask_amount","ask_price","bid_price","bid_amount"]
[1742125238817,0.94546331,82701.0,82700.0,0.00241539]
[1742125239160,0.94546331,82701.0,82700.0,3.9e-07]
[1742125240011,0.94546331,82701.0,82700.0,0.00200039]
[1742125240457,0.97000478,82701.0,82700.0,0.00200039]
[1742125240811,0.97000478,82701.0,82700.0,3.9e-07]
[1742125241403,0.97600478,82701.0,82700.0,3.9e-07]
[1742125241741,0.99496207,82701.0,82700.0,3.9e-07]
[1742125241888,0.99496207,82701.0,82700.0,0.00016949]
[1742125242089,0.99496207,82701.0,82700.0,0.0001691]
[1742125242746,0.99696207,82701.0,82700.0,0.0001691]
[1742125243335,0.99496207,82701.0,82700.0,0.0001691]
[1742125243654,1.08811975,82701.0,82700.0,1e-07]
[1742125243858,0.84008207,82701.0,82700.0,1e-07]
[1742125244183,0.73099617,82701.0,82700.0,1e-07]
[1742125244697,0.012095,82675.0,82666.0,0.25403]
[1742125244874,0.15488,82674.0,82669.0,0.012096]
[1742125245012,0.241916,82673.0,82670.0,0.0290328]
[1742125245219,0.00136356,82673.0,82671.0,0.012096]
[1742125245442,0.00136356,82673.0,82670.0,0.2709558]
[1742125245800,0.00136386,82672.0,82670.0,0.2709558]
[1742125246014,0.00136386,82672.0,82671.0,0.012096]
[1742125246164,0.00041495,82673.0,82671.0,0.03631621]
[1742125246369,0.00790478,82672.0,82671.0,0.03631621]
[1742125246777,0.00790478,82672.0,82671.0,0.11371621]
[1742125247155,0.00041495,82673.0,82671.0,0.14822021]
[1742125247376,0.00041495,82673.0,82671.0,0.02422021]
[1742125247573,0.24233295,82673.0,82672.0,0.0290328]
[1742125247801,0.25442795,82673.0,82672.0,0.0290328]
[1742125247986,0.012095,82672.0,82671.0,0.002]
[1742125248389,0.012095,82672.0,82671.0,0.008]
[1742125248703,0.012095,82672.0,82667.0,0.012096]
[1742125249102,0.012095,82672.0,82671.0,0.003]
[1742125249376,0.25442795,82673.0,82667.0,0.012096]
[1742125249377,0.00041495,82673.0,82670.0,0.012096]
[1742125249550,0.00041495,82673.0,82668.0,0.254026]
[1742125249771,0.00041495,82673.0,82671.0,0.001]
[1742125250203,0.00041495,82673.0,82671.0,0.24292]
[1742125251169,0.24233195,82673.0,82669.0,0.012096]
[1742125251401,0.012096,82669.0,82662.0,0.012097]
[1742125251605,0.01250995,82673.0,82667.0,0.002]
[1742125251744,0.00041495,82673.0,82670.0,0.254019]
[1742125251941,0.00041495,82673.0,82671.0,0.012096]
[1742125252149,0.00112347,82672.0,82670.0,0.254019]
[1742125252369,0.00112347,82672.0,82670.0,0.012096]
[1742125252551,0.00112347,82672.0,82669.0,0.013096]
[1742125252969,0.012096,82669.0,82668.0,0.001]
[1742125253199,0.254024,82669.0,82668.0,0.001]
[1742125253398,0.25514839,82669.0,82668.0,0.02552134]
[1742125254089,0.254032,82667.0,82663.0,0.0001694]
[1742125254939,0.254039,82665.0,82663.0,0.0001694]
[1742125255140,0.012097,82664.0,82663.0,0.0001694]
[1742125255336,0.74466713,82664.0,82663.0,0.0031694]
[1742125255902,0.74466713,82664.0,82663.0,0.0001694]
[1742125256234,0.89958713,82664.0,82663.0,0.0041694]
[1742125256439,0.89958713,82664.0,82663.0,0.0071694]
[1742125257025,0.88504628,82664.0,82663.0,0.0081694]
[1742125258054,0.73012628,82664.0,82663.0,0.0041694]
[1742125258262,0.88504628,82664.0,82663.0,0.0041694]
[1742125258462,0.88504628,82664.0,82663.0,0.0051694]
[1742125259050,0.87294928,82664.0,82663.0,0.0051694]
[1742125259452,0.46814628,82664.0,82663.0,0.0051694]
[1742125261012,0.00112928,82664.0,82663.0,0.0051694]
[1742125261198,0.00112928,82664.0,82663.0,0.01847604]
[1742125261522,0.50293495,82673.0,82666.0,0.012096]
[1742125262020,0.51502995,82673.0,82666.0,0.012096]
[1742125262164,0.50293495,82673.0,82671.0,0.24192]
[1742125263022,0.50293495,82673.0,82672.0,0.012095]
[1742125265485,0.50293495,82673.0,82672.0,0.0277176]
[1742125265695,0.50293495,82673.0,82672.0,0.013095]
[1742125266030,0.50293495,82673.0,82672.0,0.088095]
[1742125266231,0.50293495,82673.0,82672.0,0.11179857]
[1742125266516,0.50293495,82673.0,82672.0,0.11079857]
[1742125267064,0.50293495,82673.0,82672.0,0.13282216]
[1742125267290,0.50293495,82673.0,82672.0,0.12682216]
[1742125267880,0.50293495,82673.0,82672.0,1.61679857]
[1742125268463,0.50293495,82673.0,82672.0,1.61079857]
[1742125268669,0.50293495,82673.0,82672.0,1.61679857]
[1742125269329,0.50293495,82673.0,82672.0,1.62279857]
[1742125271105,0.50293495,82673.0,82672.0,1.63195372]
[1742125271307,4e-07,82676.0,82675.0,0.559006]
[1742125271496,4e-07,82676.0,82675.0,0.713886]
[1742125271917,4e-07,82676.0,82675.0,2.213886]
[1742125272328,4e-07,82676.0,82675.0,2.38346103]
[1742125272660,4e-07,82676.0,82675.0,2.9093646]
[1742125272865,4e-07,82676.0,82675.0,2.92390545]
[1742125273267,4e-07,82676.0,82675.0,2.91790545]
[1742125273477,4e-07,82676.0,82675.0,2.91190545]
[1742125273679,4e-07,82676.0,82675.0,2.92390545]
[1742125274924,4e-07,82676.0,82675.0,1.23478957]
[1742125275545,4e-07,82676.0,82675.0,1.27278957]
[1742125275775,4e-07,82676.0,82675.0,1.27878957]
[1742125275909,4e-07,82676.0,82675.0,1.28478957]
[1742125278543,4e-07,82676.0,82675.0,2.78478957]
[1742125279753,4e-07,82676.0,82675.0,2.92390545]
[1742125279963,4e-07,82676.0,82675.0,2.91190545]
[1742125280378,4e-07,82676.0,82675.0,2.91790545]
[1742125280980,4e-07,82676.0,82675.0,2.92390545]
[1742125281225,4e-07,82676.0,82675.0,0.28970957]
[1742125281528,4e-07,82676.0,82675.0,0.58970957]
[1742125281730,4e-07,82676.0,82675.0,2.08370957]
[1742125281870,4e-07,82676.0,82675.0,2.24454957]
[1742125282282,4e-07,82676.0,82675.0,2.23854957]
[1742125282468,4e-07,82676.0,82675.0,2.23254957]
[1742125282668,4e-07,82676.0,82675.0,2.23854957]
[1742125282871,4e-07,82676.0,82675.0,2.24454957]
[1742125283272,4e-07,82676.0,82675.0,2.25054957]
[1742125284784,4e-07,82676.0,82675.0,0.75054957]
[1742125285404,4e-07,82676.0,82675.0,0.8751246]
[1742125285619,4e-07,82676.0,82675.0,0.9251246]
[1742125286024,4e-07,82676.0,82675.0,1.3397246]
[1742125287906,4e-07,82676.0,82675.0,1.35426545]
[1742125288243,4e-07,82676.0,82675.0,1.43016545]
[1742125288628,4e-07,82676.0,82675.0,2.93016545]
[1742125289136,4e-07,82676.0,82675.0,2.91216545]
[1742125289341,4e-07,82676.0,82675.0,2.92416545]
[1742125290442,4e-07,82676.0,82675.0,2.76932545]
[1742125290698,4e-07,82676.0,82675.0,2.92412545]
[1742125291655,4e-07,82676.0,82675.0,2.92429465]
[1742125292641,4e-07,82676.0,82675.0,2.76949465]
[1742125292816,4e-07,82676.0,82675.0,2.92429465]
[1742125293599,4e-07,82676.0,82675.0,2.7788538]
[1742125293815,4e-07,82676.0,82675.0,2.6240538]
[1742125294004,4e-07,82676.0,82675.0,2.65927877]
[1742125295503,4e-07,82676.0,82675.0,2.65327877]
[1742125295727,4e-07,82676.0,82675.0,2.75327877]
[1742125295908,4e-07,82676.0,82675.0,2.75927877]
[1742125296224,4e-07,82676.0,82675.0,2.75327877]
[1742125296628,4e-07,82676.0,82675.0,2.75927877]
[1742125298638,4e-07,82676.0,82675.0,2.80927877]
[1742125299186,4e-07,82676.0,82675.0,2.75927877]
[1742125299600,4e-07,82676.0,82675.0,2.80927877]
[1742125299958,4e-07,82676.0,82675.0,2.75927877]
[1742125300966,4e-07,82676.0,82675.0,2.80927877]
[1742125301750,4e-07,82676.0,82675.0,0.38987877]
[1742125301975,0.1346954,82676.0,82675.0,0.1121692]
[1742125302160,0.4346954,82676.0,82675.0,0.1121692]
[1742125302409,0.59650292,82676.0,82675.0,0.1121692]
[1742125302757,0.59650292,82676.0,82675.0,0.1061692]
[1742125302961,0.012095,82673.0,82672.0,0.0001252]
[1742125303163,0.69215185,82673.0,82672.0,0.0001252]
[1742125303377,0.69917992,82673.0,82672.0,0.0001252]
[1742125304762,0.69917992,82673.0,82670.0,0.0001692]
[1742125304763,0.554018,82671.0,82670.0,0.0001692]
[1742125304963,1.06055885,82671.0,82670.0,0.0001692]
[1742125305162,0.62914,82664.0,82649.0,8.841e-05]
[1742125305362,0.64368085,82664.0,82663.0,0.00058435]
[1742125305604,0.65062698,82664.0,82663.0,0.00058435]
[1742125305849,0.64372385,82650.0,82649.0,8.841e-05]
[1742125306056,1.26392385,82650.0,82649.0,8.841e-05]
[1742125306404,1.27081405,82650.0,82649.0,8.841e-05]
[1742125307735,1.30632305,82650.0,82649.0,8.841e-05]
[1742125308510,1.30632305,82650.0,82649.0,0.00308841]
[1742125308705,1.30632305,82650.0,82649.0,0.00808841]
[1742125309199,1.30632305,82650.0,82640.0,0.000169]
[1742125309200,0.64375085,82641.0,82640.0,0.000169]
[1742125311014,0.3,82644.0,82643.0,0.254104]
[1742125311226,0.3,82644.0,82643.0,0.242004]
[1742125311426,0.15484,82648.0,82643.0,0.242004]
[1742125311628,0.3,82647.0,82643.0,0.254104]
[1742125312358,0.3,82647.0,82645.0,0.254097]
[1742125312916,0.4169,82650.0,82649.0,0.241987]
[1742125313129,0.76841503,82664.0,82660.0,0.012097]
[1742125313601,0.76841503,82664.0,82660.0,0.254051]
[1742125313807,0.76841503,82664.0,82660.0,0.012097]
[1742125314009,0.76841503,82664.0,82660.0,0.254051]
[1742125314418,0.00560954,82663.0,82660.0,0.254051]
[1742125315031,0.02457186,82663.0,82658.0,0.254056]
[1742125315238,0.012097,82662.0,82656.0,0.012098]
[1742125315443,0.2596344,82662.0,82657.0,0.241963]
[1742125315676,0.0176854,82662.0,82657.0,0.254061]
[1742125316933,0.012097,82660.0,82652.0,0.254075]
[1742125317267,0.01285043,82664.0,82649.0,0.0001692]
[1742125317268,0.012098,82655.0,82649.0,0.0001692]
[1742125317407,0.254077,82652.0,82649.0,0.0001692]
[1742125317773,0.15484,82654.0,82649.0,0.0001692]
[1742125317972,0.01772057,82651.0,82650.0,0.02542692]
[1742125318129,0.012099,82651.0,82650.0,0.02542692]
[1742125318336,0.01772321,82651.0,82650.0,0.02542692]
[1742125318537,0.254083,82650.0,82649.0,0.0011692]
[1742125318854,0.25971386,82650.0,82649.0,0.0001692]
[1742125319056,0.25971386,82650.0,82649.0,0.0021692]
[1742125319437,0.25971386,82650.0,82649.0,0.0001692]
[1742125319637,0.25971386,82650.0,82649.0,0.0021692]
[1742125319844,0.00563086,82650.0,82649.0,0.0021692]
[1742125320181,0.15484,82654.0,82652.0,0.012098]
[1742125320381,0.15484,82654.0,82653.0,0.012098]
[1742125320610,0.15484,82654.0,82651.0,0.254078]
[1742125321341,0.61532385,82650.0,82649.0,0.0051692]
[1742125321477,0.61532385,82650.0,82649.0,0.0021692]
[1742125321974,0.61532385,82650.0,82649.0,0.0011692]
[1742125322397,0.554083,82650.0,82649.0,0.0041692]
[1742125322951,0.254083,82650.0,82649.0,0.02478622]
[1742125323121,0.002,82650.0,82649.0,0.0001692]
[1742125323323,0.016099,82650.0,82649.0,0.0001692]
[1742125323731,0.004,82650.0,82649.0,0.0001692]
[1742125324106,0.00652,82650.0,82649.0,0.0001692]
[1742125324314,0.258603,82650.0,82649.0,0.0001692]
[1742125324848,0.258603,82650.0,82649.0,0.0021692]
[1742125325201,0.258603,82650.0,82635.0,0.000169]
[1742125325202,0.012101,82631.0,82619.0,0.26304062]
[1742125325402,0.012101,82631.0,82622.0,0.012103]
[1742125325552,0.242049,82628.0,82623.0,0.012103]
[1742125325719,0.012101,82631.0,82626.0,0.254154]
[1742125325917,0.242042,82630.0,82626.0,0.254154]
[1742125326164,0.242054,82627.0,82622.0,0.012103]
[1742125326323,0.254178,82619.0,82610.0,0.242099]
[1742125326523,0.00556697,82619.0,82612.0,0.012104]
[1742125326765,0.24206,82624.0,82619.0,0.242075]
[1742125326939,0.00041477,82627.0,82626.0,0.003]
[1742125327139,0.00041477,82627.0,82626.0,0.012102]
[1742125327741,0.00041477,82627.0,82626.0,0.01331216]
[1742125327957,0.00041477,82627.0,82626.0,0.01731216]
[1742125328355,0.00041477,82627.0,82626.0,0.012102]
[1742125328611,0.00041477,82627.0,82626.0,0.015102]
[1742125328819,0.00041477,82627.0,82626.0,0.01631213]
[1742125329017,0.00041477,82627.0,82626.0,0.01331213]
[1742125329437,0.00041477,82627.0,82626.0,0.02031213]
[1742125329819,0.00041477,82627.0,82626.0,0.007]
[1742125330422,0.00041477,82627.0,82626.0,0.019102]
[1742125330626,0.00041477,82627.0,82626.0,0.249054]
[1742125331116,0.00041477,82627.0,82626.0,0.261156]
[1742125331544,0.50041477,82627.0,82626.0,0.261156]
[1742125332092,0.50041477,82627.0,82626.0,0.007]
[1742125332215,0.50041477,82627.0,82626.0,0.249054]
[1742125332419,0.50041477,82627.0,82626.0,0.007]
[1742125333512,0.51251677,82627.0,82626.0,0.007]
[1742125334461,0.51251677,82627.0,82626.0,0.004]
[1742125334916,0.52705762,82627.0,82626.0,0.007]
[1742125335296,0.254178,82619.0,82618.0,0.00293905]
[1742125335531,0.409018,82619.0,82618.0,0.00293905]
[1742125335891,0.012102,82625.0,82618.0,0.00293905]
[1742125336113,0.77354061,82627.0,82618.0,0.00293905]
[1742125336114,0.50041477,82627.0,82626.0,0.254156]
[1742125336367,0.50041477,82627.0,82626.0,0.012102]
[1742125337961,0.00041477,82627.0,82626.0,0.012102]
[1742125338657,0.00041477,82627.0,82626.0,0.014102]
[1742125338881,0.00141477,82627.0,82626.0,0.019102]
[1742125339100,0.00141477,82627.0,82626.0,0.017102]
[1742125339315,0.00041477,82627.0,82626.0,0.016102]
[1742125339564,0.00041477,82627.0,82626.0,0.021102]
[1742125341168,0.01251677,82627.0,82626.0,0.009]
[1742125341886,0.42941677,82627.0,82626.0,0.009]
[1742125342049,0.72941677,82627.0,82624.0,0.0001691]
[1742125342253,0.012102,82625.0,82624.0,1e-07]
[1742125342487,0.52643871,82625.0,82624.0,1e-07]
[1742125342732,0.65161885,82619.0,82618.0,0.00293905]
[1742125343194,0.791878,82619.0,82618.0,0.00293905]
[1742125343440,0.5377,82619.0,82618.0,0.24501605]
[1742125343708,0.1548,82619.0,82618.0,0.27193846]
[1742125344435,0.1548,82619.0,82618.0,0.00293905]
[1742125344436,0.72351885,82619.0,82618.0,0.00293905]
[1742125344666,0.4548,82619.0,82618.0,0.00293905]
[1742125344888,0.466903,82619.0,82618.0,0.00293905]
[1742125345313,0.468903,82619.0,82618.0,0.00293905]
[1742125345530,0.4548,82619.0,82618.0,0.00293905]
[1742125345731,0.17377312,82619.0,82618.0,0.00293905]
[1742125345903,0.17477312,82619.0,82618.0,0.00293905]
[1742125346105,0.41584812,82619.0,82618.0,0.00293905]
[1742125346305,0.42799112,82619.0,82618.0,0.00293905]
[1742125346505,0.42899112,82619.0,82618.0,0.00293905]
[1742125346778,0.792918,82619.0,82618.0,0.00293905]
[1742125346993,1.22435885,82619.0,82618.0,0.00293905]
[1742125347199,1.22435885,82619.0,82618.0,0.00393905]
[1742125347200,0.91307188,82619.0,82618.0,0.00393905]
[1742125347425,1.15270903,82619.0,82618.0,0.00393905]
[1742125348168,0.89853103,82619.0,82618.0,0.00393905]
[1742125348392,1.06880903,82619.0,82618.0,0.00293905]
[1742125348940,0.51663103,82619.0,82618.0,0.00293905]
[1742125349252,0.52873403,82619.0,82618.0,0.00293905]
[1742125349478,0.52773403,82619.0,82618.0,0.00293905]
[1742125350076,0.52973403,82619.0,82618.0,0.00293905]
[1742125351108,0.52973403,82619.0,82618.0,0.10293905]
[1742125351305,0.82773403,82619.0,82618.0,0.10293905]
[1742125352227,0.90373403,82619.0,82618.0,0.10293905]
[1742125352524,0.96757488,82619.0,82618.0,0.10293905]
[1742125352760,0.96657488,82619.0,82618.0,0.10293905]
[1742125352894,0.96757488,82619.0,82618.0,0.10310825]
[1742125353089,0.56874285,82611.0,82610.0,0.2]
[1742125353297,1.06164285,82611.0,82610.0,0.2]
[1742125353945,1.08061829,82611.0,82610.0,0.2]
[1742125354148,1.23545829,82611.0,82610.0,0.2]
[1742125354554,1.35503332,82611.0,82610.0,0.2]
[1742125354982,1.35803332,82611.0,82610.0,0.2]
[1742125355398,1.36103332,82611.0,82610.0,0.2]
[1742125356042,1.39654232,82611.0,82610.0,0.2]
[1742125356562,1.24145829,82611.0,82610.0,0.2]
[1742125356759,1.24145829,82611.0,82610.0,0.195]
[1742125358431,1.22248285,82611.0,82610.0,0.195]
[1742125359654,1.131982,82611.0,82610.0,0.195]
[1742125360492,1.14652285,82611.0,82610.0,0.195]
[1742125360693,1.22252285,82611.0,82610.0,0.195]
[1742125362071,1.207982,82611.0,82610.0,0.195]
[1742125362206,1.22252285,82611.0,82610.0,0.195]
[1742125362928,1.24149873,82611.0,82610.0,0.195]
[1742125363245,1.23649873,82611.0,82610.0,0.195]
[1742125365335,1.23649873,82611.0,82610.0,0.1951692]
[1742125366675,1.21752285,82611.0,82610.0,0.1951692]
[1742125368235,1.98352285,82611.0,82610.0,0.1951692]
[1742125368439,1.98052285,82611.0,82610.0,0.1951692]
[1742125368654,1.98852285,82611.0,82610.0,0.1951692]
[1742125369143,1.98852285,82611.0,82610.0,0.1871692]
[1742125369513,2.01100294,82611.0,82610.0,0.1871692]
[1742125369706,1.98852285,82611.0,82610.0,0.1871692]
[1742125370114,2.00749886,82611.0,82610.0,0.1871692]
[1742125374271,1.91292285,82611.0,82610.0,0.1871692]
[1742125374877,1.91296285,82611.0,82610.0,0.1871692]
[1742125375104,1.91292285,82611.0,82610.0,0.1871692]
[1742125375510,2.03249788,82611.0,82610.0,0.1871692]
[1742125375670,1.91292285,82611.0,82610.0,0.1871692]
[1742125376069,1.91292285,82611.0,82610.0,0.1791692]
[1742125377316,1.93189899,82611.0,82610.0,2e-07]
[1742125377472,1.92789899,82611.0,82610.0,2e-07]
[1742125377678,1.90992285,82611.0,82610.0,2e-07]
[1742125378074,1.75464285,82611.0,82610.0,2e-07]
[1742125378276,1.440102,82611.0,82610.0,2e-07]
[1742125378536,1.596382,82611.0,82610.0,2e-07]
[1742125378960,1.745102,82611.0,82610.0,2e-07]
[1742125379158,1.901302,82611.0,82610.0,2e-07]
[1742125379314,1.891302,82611.0,82610.0,2e-07]
[1742125379725,1.738102,82611.0,82610.0,2e-07]
[1742125379927,1.894382,82611.0,82610.0,2e-07]
[1742125380825,0.772,82611.0,82610.0,2e-07]
[1742125381077,0.80407943,82611.0,82610.0,0.03214152]
[1742125381506,0.80507943,82611.0,82610.0,0.03214152]
[1742125381708,0.79397543,82611.0,82610.0,0.03214152]
[1742125381908,0.79397543,82611.0,82610.0,0.27424252]
[1742125381909,0.78897543,82611.0,82610.0,0.27424252]
[1742125382114,0.78897543,82611.0,82610.0,0.33194752]
[1742125382115,0.01997543,82611.0,82610.0,0.33194752]
[1742125382338,0.01997543,82611.0,82610.0,0.33294752]
[1742125382876,0.01997543,82611.0,82610.0,0.33194752]
[1742125383516,0.01997543,82611.0,82610.0,0.0456002]
[1742125383955,0.01997543,82611.0,82610.0,0.0577052]
[1742125384521,0.01897543,82611.0,82610.0,0.0587052]
[1742125389273,0.01897543,82611.0,82610.0,0.0466002]
[1742125389858,0.01931383,82611.0,82610.0,0.0466002]
[1742125390068,0.01931383,82611.0,82610.0,0.08703212]
[1742125391420,0.01931383,82611.0,82610.0,0.32913312]
[1742125391600,0.01931383,82611.0,82610.0,0.34123812]
[1742125391769,0.0003384,82611.0,82610.0,0.34123812]
[1742125393233,0.0003384,82611.0,82610.0,0.34023812]
[1742125393438,0.0003384,82611.0,82610.0,0.42233812]
[1742125394245,0.0003384,82619.0,82618.0,0.012103]
[1742125394421,0.0003384,82619.0,82618.0,0.3835901]
[1742125394628,4e-07,82619.0,82618.0,0.38238]
[1742125395227,4e-07,82619.0,82618.0,0.38738]
[1742125395405,4e-07,82619.0,82618.0,0.38938]
[1742125395607,4e-07,82619.0,82618.0,0.42981192]
[1742125395896,4e-07,82619.0,82618.0,0.42881192]
[1742125396073,4e-07,82619.0,82618.0,0.58261192]
[1742125396281,0.0010004,82619.0,82618.0,0.58461192]
[1742125396516,0.0020004,82619.0,82618.0,0.58461192]
[1742125396937,0.0020004,82619.0,82618.0,0.57961192]
[1742125397143,0.0020004,82619.0,82618.0,0.42381192]
[1742125397579,0.0010004,82619.0,82618.0,0.42181192]
[1742125397802,0.01455268,82654.0,82630.0,0.1282]
[1742125398001,0.01455268,82654.0,82649.0,0.1282]
[1742125398002,0.0003382,82654.0,82649.0,0.1282]
[1742125398183,0.0003382,82654.0,82649.0,0.382286]
[1742125398389,0.0003382,82654.0,82653.0,0.012098]
[1742125398791,0.0003382,82654.0,82653.0,0.01330769]
[1742125399017,0.0003382,82654.0,82653.0,0.05273961]
[1742125399215,0.0003382,82654.0,82653.0,0.06693308]
[1742125399416,0.0003382,82654.0,82653.0,0.06593308]
[1742125399853,0.0003382,82654.0,82653.0,0.14803308]
[1742125400058,0.0013382,82654.0,82653.0,0.14903308]
[1742125400240,2e-07,82654.0,82653.0,0.19413308]
[1742125400654,0.0003384,82663.0,82662.0,0.254046]
[1742125400835,0.0003384,82663.0,82662.0,0.39506709]
[1742125401047,8e-07,82664.0,82663.0,0.017097]
[1742125401325,8e-07,82664.0,82663.0,0.25656628]
[1742125401484,8e-07,82664.0,82663.0,0.255357]
[1742125401680,0.00033899,82694.0,82693.0,0.25395]
[1742125401891,0.00033899,82694.0,82693.0,0.29438192]
[1742125402060,0.0003384,82694.0,82693.0,0.29438192]
[1742125402893,0.0003384,82694.0,82693.0,0.29338192]
[1742125403693,0.0003384,82694.0,82693.0,0.29538192]
[1742125404490,0.0003384,82694.0,82693.0,0.29738192]
[1742125405291,0.0003384,82694.0,82693.0,0.37948192]
[1742125405504,0.0003384,82694.0,82693.0,0.42558192]
[1742125405710,4e-07,82694.0,82693.0,0.42558192]
[1742125406206,4e-07,82694.0,82693.0,0.81319757]
[1742125406407,4e-07,82694.0,82693.0,0.81119757]
[1742125406608,4e-07,82694.0,82693.0,0.96759757]
[1742125406816,4e-07,82694.0,82693.0,0.97359757]
[1742125407054,4e-07,82694.0,82693.0,0.96759757]
[1742125407279,4e-07,82694.0,82693.0,0.96559757]
[1742125407480,4e-07,82694.0,82693.0,0.97659757]
[1742125407632,4e-07,82694.0,82693.0,0.97059757]
[1742125407827,4e-07,82694.0,82693.0,0.96559757]
[1742125408032,4e-07,82694.0,82693.0,1.00540277]
[1742125408360,4e-07,82694.0,82693.0,1.32759757]
[1742125408565,4e-07,82694.0,82693.0,2.82759757]
[1742125408963,4e-07,82694.0,82693.0,2.86140277]
[1742125409262,4e-07,82694.0,82693.0,2.69549292]
[1742125409445,4e-07,82694.0,82693.0,0.43358192]
[1742125409644,4e-07,82694.0,82693.0,0.35148192]
[1742125410051,4e-07,82694.0,82693.0,0.012]
[1742125410254,4e-07,82694.0,82693.0,0.018092]
[1742125410683,4e-07,82694.0,82693.0,0.15620109]
[1742125410879,4e-07,82694.0,82693.0,0.57477612]
[1742125411242,8e-07,82702.0,82701.0,0.012091]
[1742125411444,0.0001253,82702.0,82701.0,0.25513474]
[1742125411745,0.0001253,82702.0,82701.0,0.28235787]
[1742125412971,0.0003384,82710.0,82709.0,0.253901]
[1742125412972,7e-07,82710.0,82709.0,0.253901]
[1742125413168,0.00041616,82710.0,82709.0,0.253901]
[1742125413790,1.6e-07,82710.0,82709.0,0.65777603]
[1742125414394,1.6e-07,82710.0,82709.0,0.533201]
[1742125414593,1.6e-07,82710.0,82709.0,0.55790214]
[1742125414813,1.6e-07,82710.0,82709.0,0.56382214]
[1742125415024,1.6e-07,82710.0,82709.0,0.55782214]
[1742125415423,1.6e-07,82710.0,82709.0,0.56382214]
[1742125416029,1.6e-07,82710.0,82709.0,0.55782214]
[1742125416400,1.6e-07,82710.0,82709.0,0.40162214]
[1742125416610,1.6e-07,82710.0,82709.0,0.40762214]
[1742125416795,1.6e-07,82710.0,82709.0,0.40162214]
[1742125417203,1.6e-07,82710.0,82709.0,0.40762214]
[1742125417411,1.6e-07,82710.0,82709.0,0.41362214]
[1742125417945,1.6e-07,82710.0,82709.0,0.40762214]
[1742125418124,1.6e-07,82710.0,82709.0,0.27872214]
[1742125418330,1.6e-07,82710.0,82709.0,0.29072214]
[1742125418829,1.6e-07,82710.0,82709.0,0.28472214]
[1742125419236,1.6e-07,82710.0,82709.0,0.29072214]
[1742125419644,1.6e-07,82710.0,82709.0,0.28472214]
[1742125419842,1.6e-07,82710.0,82709.0,0.29072214]
[1742125420267,1.6e-07,82710.0,82709.0,0.28472214]
[1742125420475,1.6e-07,82710.0,82709.0,0.28872214]
[1742125420681,1.6e-07,82710.0,82709.0,0.28272214]
[1742125420878,1.6e-07,82710.0,82709.0,0.28772214]
[1742125421282,1.6e-07,82710.0,82709.0,0.28372214]
[1742125421488,1.6e-07,82710.0,82709.0,0.28272214]
[1742125421687,1.6e-07,82710.0,82709.0,0.28772214]
[1742125421883,1.6e-07,82710.0,82709.0,1.78772214]
[1742125422419,1.6e-07,82710.0,82709.0,1.78272214]
[1742125422648,1.6e-07,82710.0,82709.0,1.78872214]
[1742125422952,1.6e-07,82710.0,82709.0,1.78472214]
[1742125423185,1.6e-07,82710.0,82709.0,1.79072214]
[1742125425142,1.6e-07,82710.0,82709.0,0.03682114]
[1742125425347,0.01209016,82710.0,82709.0,0.012]
[1742125425570,0.031039,82710.0,82709.0,0.006]
[1742125425947,0.01209,82708.0,82701.0,0.242003]
[1742125426200,0.241817,82707.0,82702.0,0.25392]
[1742125426392,0.241817,82707.0,82701.0,0.254094]
[1742125426393,0.241825,82705.0,82701.0,0.242003]
[1742125426603,0.012091,82706.0,82701.0,0.242003]
[1742125426604,0.01209,82708.0,82702.0,0.24183]
[1742125426867,0.253907,82707.0,82702.0,0.012091]
[1742125427200,0.253907,82707.0,82702.0,0.25392]
[1742125427400,0.031377,82710.0,82705.0,0.253911]
[1742125427589,0.031377,82710.0,82705.0,0.012091]
[1742125427785,0.019287,82710.0,82705.0,0.012091]
[1742125428440,0.253904,82709.0,82704.0,0.253914]
[1742125428636,0.253904,82709.0,82702.0,0.002]
[1742125428637,0.012091,82703.0,82702.0,0.002]
[1742125428837,0.253919,82704.0,82702.0,0.002]
[1742125429041,0.253919,82704.0,82701.0,0.000169]
[1742125429260,0.312091,82702.0,82701.0,0.000169]
[1742125429852,0.3,82702.0,82701.0,0.000169]
[1742125430386,0.3,82702.0,82701.0,0.0267889]
[1742125430608,0.32194789,82702.0,82701.0,0.0287889]
[1742125431002,0.32194789,82702.0,82701.0,0.0267889]
[1742125431609,0.02194789,82702.0,82701.0,0.2807149]
[1742125431970,0.02194789,82702.0,82701.0,0.2827149]
[1742125432396,0.02194789,82709.0,82708.0,0.253904]
[1742125432603,0.02194789,82709.0,82708.0,0.28053711]
[1742125433596,0.02194789,82709.0,82708.0,0.28253711]
[1742125433800,0.01894998,82727.0,82709.0,0.01209]
[1742125433999,0.01894998,82727.0,82709.0,0.01329878]
[1742125434200,0.0751,82716.0,82708.0,0.002]
[1742125434425,0.25423616,82710.0,82708.0,0.002]
[1742125434627,0.01209,82709.0,82708.0,0.002]
[1742125434827,0.27318742,82710.0,82708.0,0.002]
[1742125434828,0.01928942,82710.0,82708.0,0.243813]
[1742125435309,0.01928942,82710.0,82708.0,0.004]
[1742125435562,0.02200827,82709.0,82708.0,0.255901]
[1742125435731,0.02200827,82709.0,82708.0,0.253901]
[1742125435935,0.02200827,82709.0,82708.0,0.259901]
[1742125436192,0.02200827,82709.0,82708.0,0.254901]
[1742125436594,0.02200827,82709.0,82708.0,0.255901]
[1742125436985,0.02200827,82709.0,82708.0,0.253901]
[1742125437270,0.02200827,82709.0,82708.0,0.257901]
[1742125437826,0.00033816,82710.0,82709.0,0.01209]
[1742125438056,0.00033816,82710.0,82709.0,0.01329887]
[1742125439302,0.00033816,82710.0,82709.0,0.01809]
[1742125439631,0.00033816,82710.0,82709.0,0.02409]
[1742125439991,0.00033816,82710.0,82709.0,0.02529885]
[1742125441098,1.6e-07,82710.0,82709.0,0.22297388]
[1742125441506,1.6e-07,82710.0,82709.0,1.72297388]
[1742125441749,1.6e-07,82710.0,82709.0,1.72176503]
[1742125441959,1.6e-07,82710.0,82709.0,1.71576503]
[1742125442160,1.6e-07,82710.0,82709.0,1.93762588]
[1742125442366,3.6e-07,82729.0,82728.0,0.384543]
[1742125442568,0.00012493,82729.0,82728.0,0.65883803]
[1742125442769,9.3e-07,82729.0,82728.0,0.65883803]
[1742125442974,9.3e-07,82729.0,82728.0,0.534263]
[1742125443146,9.3e-07,82729.0,82728.0,0.408563]
[1742125443350,9.3e-07,82729.0,82728.0,0.37341803]
[1742125443648,9.3e-07,82729.0,82728.0,0.37941803]
[1742125443849,0.3,82756.0,82752.0,0.241684]